Cogmind - Beta 13 @@@ ROGUE MODE // 2024.04.02 @ 23:38:55 Player: Bean Result: Destroyed by G-47 Trooper with Particle Gun Performance ------------- Evolutions (3) 1500 Regions Visited (5) 1000 Robots Destroyed (16) 80 Value Destroyed (530) 530 Prototype IDs (2) 40 Alien Tech Used (0) 0 Bonus (-112) -112 TOTAL SCORE: 3038 Bonus ------- Friendly Fire -112 Cogmind --------- Core Integrity 0/700 Matter 241/300 Energy 90/100 System Corruption 24% Temperature Cool (30) Movement Core (200) Ox3 Location -7/Factory Parts ------- > --- POWER (3) -------- (None) > --- PROPULSION (4) --- (None) > --- UTILITY (4) ------ Medium Storage Unit > --- WEAPON (2) ------- (None) > --- INVENTORY (10) --- Transmission Jammer ECM Suite Advanced ECM Suite Peak State ------------ > --- POWER ------------ Light Deuterium Engine Light Nuclear Core Light Nuclear Core > --- PROPULSION ------- Gravmag System Gravmag System Gravmag System Gravmag System > --- UTILITY ---------- Improved Sensor Array Transmission Jammer ECM Suite Advanced ECM Suite > --- WEAPON ----------- Pulse Rifle Improved Datajack > --- INVENTORY -------- Gravmag System ECM Suite ECM Suite Pulse Rifle Rocket Launcher [Rating: 44] Favorites ----------- Power Light Nuclear Core Engine Light Deuterium Engine Power Core Light Nuclear Core Propulsion Gravmag System Treads Light Treads Leg VSS Leg Wheel Compact Wheel Hover Unit Gravmag System Flight Unit VTOL Module Utility ECM Suite Device ECM Suite Storage Medium Storage Unit Processor Transport Network Coupler Weapon Assault Rifle Energy Gun Pulse Rifle Ballistic Gun Assault Rifle Launcher Rocket Launcher Special Weapon Remote Datajack Special Melee Weapon Improved Datajack Build | -11 -10 -9 -9 -8 -7 ------- Run | Yrd Mat Mat Sto Mat Fac Slots Evolved 6 | . . 2 . 2 2 Power 2 | . . . . 1 1 Propulsion 2 | . . 1 . . 1 Utility 2 | . . 1 . 1 . Weapon . | . . . . . . Parts Attached 66 | 6 8 2 15 21 14 Power 6 | 1 . . . 4 1 Engine 4 | 1 . . . 3 . Core 2 | . . . . 1 1 Reactor . | . . . . . . Propulsion 22 | 2 5 1 4 5 5 Treads 4 | . . . 3 . 1 Leg 1 | . . . . 1 . Wheel 4 | 2 2 . . . . Hover 8 | . . . . 4 4 Flight 5 | . 3 1 1 . . Utility 23 | 1 3 1 7 8 3 Device 19 | . 2 1 7 7 2 Storage 2 | 1 . . . . 1 Processor 2 | . 1 . . 1 . Hackware . | . . . . . . Protection . | . . . . . . Artifact . | . . . . . . Weapon 15 | 2 . . 4 4 5 Energy Gun 3 | . . . . 2 1 Energy Cannon . | . . . . . . Ballistic Gun 5 | 2 . . 2 1 . Ballistic Cannon . | . . . . . . Launcher 4 | . . . 2 1 1 Special Weapon 2 | . . . . . 2 Impact Weapon . | . . . . . . Slashing Weapon . | . . . . . . Piercing Weapon . | . . . . . . Special Melee Weapon 1 | . . . . . 1 Unidentified Prototypes 2 | . . . . 1 1 Parts Lost 34 | . . . 14 5 15 Power 6 | . . . 1 2 3 Propulsion 9 | . . . 5 . 4 Utility 11 | . . . 5 2 4 Weapon 8 | . . . 3 1 4 Highest Loss Streak 11 | . . . 6 5 11 To Critical Strikes 1 | . . . 1 . . Average Slot Usage (%) 69 | . 98 88 57 57 70 Engine 6 | . 14 11 2 6 4 Core 2 | . . . . 1 9 Treads 2 | . . . 8 . 1 Wheel 5 | . 26 . . . . Hover 8 | . . . . 11 18 Flight 3 | . 1 33 13 . . Device 23 | . 23 22 23 24 21 Processor 2 | . 2 11 5 3 . Energy Gun 2 | . . . . 2 6 Ballistic Gun 7 | . 28 11 4 3 . Naked Turns 18 | . . . 18 . . Heaviest Build 28 | 14 14 11 18 22 28 Greatest Support 40 | 26 26 12 40 27 36 Greatest Overweight (x) 5 | . 1 . 5 2 3 Average Overweight (x) . | . . . . . . Largest Inventory Capacity 10 | 8 8 5 5 5 10 Average Capacity 5 | 7 5 5 5 5 6 Most Carried 5 | 4 5 3 5 5 5 Average Carried 3 | 1 3 2 4 2 3 Final Capacity 10 | 8 5 5 5 5 10 Final Carried 5 | 1 4 3 5 3 3 Class Distribution -------------------- 61% | Mutant 29% | Infiltrator-Mutant 8% | Sprinter Dominant Class ---------------- Mutant | -10/Materials Mutant | -9/Materials Mutant | -9/Storage Mutant | -8/Materials Infiltrator-Mutant | -7/Factory Resources | -11 -10 -9 -9 -8 -7 ----------- Run | Yrd Mat Mat Sto Mat Fac Matter Collected 927 | 199 90 . 248 284 106 Remotely . | . . . . . . Salvage Created 488 | . 90 . 201 66 131 Parts 40 | . 8 . 14 7 11 Haulers Intercepted 2 | . 1 . . . 1 Recyclers Shooed 2 | . . . 2 . . Parts Field Recycled . | . . . . . . Retrieved Matter . | . . . . . . Parts Self-Destructed . | . . . . . . Prevented . | . . . . . . Kills | -11 -10 -9 -9 -8 -7 ------- Run | Yrd Mat Mat Sto Mat Fac Combat Hostiles Destroyed 13 | . 3 . 6 2 2 Melee 3 | . . . 2 . 1 Guns 6 | . 3 . 1 1 1 AOE 4 | . . . 3 1 . Classes Destroyed 8 | . 2 . 5 . 1 Hauler 2 | . 1 . . . 1 Drone 1 | . . . 1 . . Watcher 1 | . . . 1 . . Swarmer 3 | . 3 . . . . Grunt 2 | . . . 2 . . Duelist 1 | . . . 1 . . Sentry 5 | . . . 3 2 . Programmer 2 | . . . . . 2 Best Kill Streak 4 | . 2 . 4 2 1 Combat Bots Only 4 | . 2 . 4 2 1 Max Kills in Single Turn 3 | . 1 . 3 1 1 Gunslinging . | . . . . . . Exploded 2 | . . . 2 1 . Melee 1 | . . . 1 . 1 Uniques/NPCs Destroyed . | . . . . . . Combat | -11 -10 -9 -9 -8 -7 -------- Run | Yrd Mat Mat Sto Mat Fac Hostile Shots Fired 471 | . 18 3 165 70 215 Missed 153 | . 1 2 53 18 79 Damage Taken 4096 | . 162 7 1438 812 1677 Core 1360 | . 49 7 272 320 712 Absorbed by Shields . | . . . . . . Regen/Repaired (Parts) 25 | . . . 9 16 . Core Remaining (%) 62 | 100 80 . 30 41 . Volleys Fired 65 | . 14 . 21 7 23 Largest 2 | . 2 . 2 2 1 Hottest 63 | . 40 . 50 58 63 Shots Fired 89 | . 28 . 25 14 22 Gun 75 | . 28 . 20 7 20 Cannon . | . . . . . . Launcher 13 | . . . 5 7 1 Special 1 | . . . . . 1 Kinetic 55 | . 28 . 20 7 . Thermal 7 | . . . . . 7 Explosive 13 | . . . 5 7 1 Electromagnetic 13 | . . . . . 13 Robot Hit Streak 17 | . 4 . 14 17 8 Robot Miss Streak 5 | . 5 . 1 1 4 Penetration Max . | . . . . . . Secondary Targets . | . . . . . . Shots Hit Robots 56 | . 12 . 17 10 17 Core Hits 66 | . 5 . 37 4 20 Critical Kills 1 | . . . . 1 . Critical Parts Destroyed 1 | . 1 . . . . Critical Strikes 2 | . 1 . . 1 . Destroy 2 | . 1 . . 1 . Melee Attacks 5 | . . . . . 5 Impact . | . . . . . . Slashing . | . . . . . . Piercing . | . . . . . . Sneak Attacks 4 | . . . . . 4 Combat Hostiles . | . . . . . . Follow-up Attacks . | . . . . . . Damage Inflicted 1252 | . 153 . 477 176 446 Guns 549 | . 153 . 194 77 125 Cannons . | . . . . . . Explosions 448 | . . . 221 94 133 Melee . | . . . . . . Ramming 255 | . . . 62 5 188 Kinetic 424 | . 153 . 194 77 . Thermal 113 | . . . . . 113 Explosive 448 | . . . 221 94 133 Electromagnetic 12 | . . . . . 12 Impact . | . . . . . . Slashing . | . . . . . . Piercing . | . . . . . . Highest Corruption 24 | . . . . 3 24 Average Corruption 8 | . . . . 2 13 Corruption Purged . | . . . . . . Corruption Blocked . | . . . . . . Effects 19 | . . . . 5 14 Message Errors 2 | . . . . 2 . Matter Fused 7 | . . . . 2 5 Heat Flow Errors 2 | . . . . 1 1 Energy Discharges 2 | . . . . . 2 Data Loss (minor) 2 | . . . . . 2 Data Loss (major) 1 | . . . . . 1 Misdirections 2 | . . . . . 2 Weapon Failures 1 | . . . . . 1 Overload Shots . | . . . . . . Overflow Damage 6 | . . . 5 . 1 Projectiles . | . . . . . . Explosions 5 | . . . 5 . . Melee 1 | . . . . . 1 Knockbacks 2 | . . . . . 2 Impact 2 | . . . . . 2 Kinetic . | . . . . . . Secondary . | . . . . . . Self-Inflicted Damage 180 | . . . 83 8 89 Shots 5 | . . . 3 1 1 Rammed 91 | . . . 44 1 46 Targets Rammed 91 | . . . 44 1 46 Kicked . | . . . . . . Crushed . | . . . . . . Highest Temperature 426 | . . . 11 273 426 Average Temperature 141 | . . . 5 81 162 Received Heat Transfer 1296 | . 30 . 552 360 354 Effects 9 | . . . . . 9 Shutdowns 5 | . . . . . 5 Energy Bleed 1 | . . . . . 1 Interference 2 | . . . . . 2 Short Circuit 1 | . . . . . 1 Siege Activations . | . . . . . . Robots Corrupted . | . . . . . . Combat Hostiles . | . . . . . . Parts Fried . | . . . . . . Impact Corruptions 1 | . . . . . 1 Robots Melted . | . . . . . . Combat Hostiles . | . . . . . . Parts Melted 2 | . . . . . 2 Heat Transferred 222 | . . . . . 222 Parts Sabotaged . | . . . . . . Parts Stolen . | . . . . . . Parts Stripped . | . . . . . . Power Chain Reactions . | . . . . . . Alert | -11 -10 -9 -9 -8 -7 ------- Run | Yrd Mat Mat Sto Mat Fac Peak Influence 208 | . 136 30 208 122 58 Initial 12 | . . . 12 5 6 Average 46 | . 38 23 86 40 28 Maximum Alert Level 1 | . . . 1 . . Low Security (%) 95 | 100 100 100 79 100 100 Level 1 4 | . . . 20 . . Level 2 . | . . . . . . Level 3 . | . . . . . . Level 4 . | . . . . . . Level 5 . | . . . . . . High Security . | . . . . . . Max Security . | . . . . . . Squads Dispatched 9 | . . . 2 5 2 Investigation 3 | . . . 2 1 . Extermination 1 | . . . . . 1 Reinforcement 2 | . . . . 1 1 Assault . | . . . . . . Garrison 3 | . . . . 3 . Intercept . | . . . . . . Searches Triggered . | . . . . . . Construction Impeded . | . . . . . . Haulers Reinforced 1 | . . . . . 1 Active Scanning Responses . | . . . . . . Cargo Convoy Interrupts . | . . . . . . Stealth | -11 -10 -9 -9 -8 -7 --------- Run | Yrd Mat Mat Sto Mat Fac Distress Signals 10 | . 2 1 2 5 . Communications Jammed . | . . . . . . Distress Signals . | . . . . . . Times Spotted 62 | . 14 5 28 7 8 Peak Tracking Total 13 | . 4 4 13 3 5 Tactical Retreats 13 | . 5 1 3 3 1 Traps | -11 -10 -9 -9 -8 -7 ------- Run | Yrd Mat Mat Sto Mat Fac Traps Triggered 5 | . . . 2 3 . Indirectly . | . . . . . . Trap Hack Attempts . | . . . . . . Triggered . | . . . . . . Disarmed . | . . . . . . Reprogrammed . | . . . . . . Reused . | . . . . . . Traps Extracted . | . . . . . . Installed . | . . . . . . Triggered . | . . . . . . Machines | -11 -10 -9 -9 -8 -7 ---------- Run | Yrd Mat Mat Sto Mat Fac Machines Disabled 2 | . . . 1 1 . Max in Single Turn 1 | . . . 1 1 . Garrison Access 1 | . . . . . 1 Machines Repaired . | . . . . . . Machines Dismantled . | . . . . . . Machines Sabotaged . | . . . . . . Overloaded Fab Kills . | . . . . . . Hacking | -11 -10 -9 -9 -8 -7 --------- Run | Yrd Mat Mat Sto Mat Fac Machines Accessed 9 | . 1 . 4 3 1 Terminals 5 | . 1 . 3 1 . Fabricators . | . . . . . . Repair Stations 2 | . . . 1 1 . Recycling Units . | . . . . . . Scanalyzers 1 | . . . . 1 . Garrison Access 1 | . . . . . 1 Total Hacks 18 | . 1 . 8 8 1 Successful 11 | . 1 . 5 4 1 Failed 7 | . . . 3 4 . Catastrophic . | . . . . . . Database Lockouts . | . . . . . . Manual 3 | . 1 . 2 . . Terminals 10 | . 1 . 6 3 . Fabricators . | . . . . . . Repair Stations 5 | . . . 2 3 . Recycling Units . | . . . . . . Scanalyzers 2 | . . . . 2 . Garrison Access 1 | . . . . . 1 Terminal Hacks 4 | . 1 . 3 . . Open Door 1 | . . . 1 . . Locate Traps 1 | . 1 . . . . Transport Status 1 | . . . 1 . . Hauler Manifests 1 | . . . 1 . . Fabricator Hacks . | . . . . . . Repair Station Hacks 4 | . . . 2 2 . Scan Component 2 | . . . 1 1 . Repair 2 | . . . 1 1 . Recycling Unit Hacks . | . . . . . . Scanalyzer 2 | . . . . 2 . Insert Component 1 | . . . . 1 . Analyze 1 | . . . . 1 . Garrison Access Hacks 1 | . . . . . 1 Seal Access 1 | . . . . . 1 Unauthorized Hacks . | . . . . . . Terminals . | . . . . . . Fabricators . | . . . . . . Repair Stations . | . . . . . . Recycling Units . | . . . . . . Scanalyzers . | . . . . . . Garrison Access . | . . . . . . Data Cores Recovered . | . . . . . . Used . | . . . . . . Hacking Detections 6 | . . . 3 3 . Full Trace Events 1 | . . . . 1 . Feedback Events . | . . . . . . Feedback Blocked . | . . . . . . Robot Schematics Acquired . | . . . . . . Robots Built . | . . . . . . Authchips . | . . . . . . Time . | . . . . . . Total Robot Build Rating . | . . . . . . Part Schematics Acquired 1 | . . . . 1 . Parts Built . | . . . . . . Authchips . | . . . . . . Time . | . . . . . . Total Part Build Rating . | . . . . . . Parts Repaired 2 | . . . 1 1 . Time 52 | . . . 26 26 . Parts Recycled . | . . . . . . Recycled Matter . | . . . . . . Retrieved Matter . | . . . . . . Retrieved Components . | . . . . . . Parts Scanalyzed 1 | . . . . 1 . Part Schematics Acquired 1 | . . . . 1 . Parts Damaged 1 | . . . . 1 . Bothacking | -11 -10 -9 -9 -8 -7 ------------ Run | Yrd Mat Mat Sto Mat Fac Used RIF Installer . | . . . . . . Robots Hacked 2 | . . . . . 2 Non-combat 2 | . . . . . 2 Combat . | . . . . . . Robot Hacks Applied 5 | . . . . . 5 parse_system 1 | . . . . . 1 no_distress 2 | . . . . . 2 find_fabricator 1 | . . . . . 1 find_dsf 1 | . . . . . 1 Relay Couplers Released . | . . . . . . Fabnet Peak Effective % . | . . . . . . Robots Rewired . | . . . . . . Allies Hacked . | . . . . . . Hacks Repelled . | . . . . . . Allies | -11 -10 -9 -9 -8 -7 -------- Run | Yrd Mat Mat Sto Mat Fac Total Allies . | . . . . . . Largest Group . | . . . . . . Highest-Rated Group . | . . . . . . Highest-Rated Ally . | . . . . . . Total Orders . | . . . . . . Ally Attacks . | . . . . . . Total Damage . | . . . . . . Kills . | . . . . . . Allies Corrupted . | . . . . . . Allies Melted . | . . . . . . Intel | -11 -10 -9 -9 -8 -7 ------- Run | Yrd Mat Mat Sto Mat Fac Robot Analysis Total . | . . . . . . Derelict Logs Recovered . | . . . . . . Drone Launches 17 | . . . 17 . . Drone Recoveries 10 | . . . 10 . . Exploration | -11 -10 -9 -9 -8 -7 ------------- Run | Yrd Mat Mat Sto Mat Fac Turns Passed 2526 | 55 484 13 581 757 636 Spaces Moved 2016 | 50 335 34 445 458 694 Core 235 | 6 . . 47 109 73 Treads 210 | . . . 122 . 88 Legs 115 | . . . . 115 . Wheels 370 | 44 326 . . . . Hover 767 | . . . . 234 533 Flight 319 | . 9 34 276 . . Fastest Speed 29 | 50 90 29 29 52 45 Average Speed 77 | 85 90 29 72 94 63 Slowest Speed 300 | 90 112 29 300 180 200 Overloaded Moves . | . . . . . . Propulsion Burnouts . | . . . . . . Robots Hopped 5 | . . . 5 . . Cave-ins Triggered . | . . . . . . Exploration Rate (%) 33 | 4 42 5 77 54 16 Regions Visited 5 Branch Regions 1 Pre-discovered Areas . | . . . . . . Known Exits Taken . | . . . . . . Unknown Exits Taken 5 | 1 1 1 1 1 . Scrap Searched . | . . . . . . Spaces Dug 7 | . . . 7 . . Terrain Destroyed 74 | . . . 33 35 6 Melee . | . . . . . . Projectile . | . . . . . . AOE 74 | . . . 33 35 6 Terrain Rammed . | . . . . . . Walls Destroyed . | . . . . . . Machines Disabled . | . . . . . . Actions | -11 -10 -9 -9 -8 -7 --------- Run | Yrd Mat Mat Sto Mat Fac Total 2880 | 62 492 36 654 772 864 Wait 540 | . 111 . 110 255 64 Move 2001 | 49 334 33 434 457 694 Hop 5 | . . . 5 . . Pick Up 68 | 7 14 . 15 22 10 Fast Attach . | . . . . . . Attach 61 | 6 8 2 13 20 12 Detach 11 | . 1 1 4 2 3 Swap 5 | . . . 2 1 2 Drop 28 | . 10 . 6 7 5 Fire 65 | . 14 . 21 7 23 Melee 5 | . . . . . 5 Ram 53 | . . . 8 1 44 Kick . | . . . . . . Crush 38 | . . . 36 . 2 Escape Stasis . | . . . . . . Rewire . | . . . . . . Trap . | . . . . . . Miscellaneous . | . . . . . . Route ------- -11/Scrapyard -10/Materials -9/Materials -9/Storage -8/Materials -7/Factory History --------- Turn | Location | Event 11 | -11/Scrapyard | Discovered new exit (range 15) 56 | -11/Scrapyard | Entered Materials 303 | -10/Materials | Build established: Mutant 492 | -10/Materials | Discovered new exit (range 13) 540 | -10/Materials | Entered another Materials area 540 | -9/Materials | Evolved 2 slots: Propulsion x1, Utility x1 551 | -9/Materials | Discovered new exit (range 5) 553 | -9/Materials | Entered Storage 584 | -9/Storage | Repaired ECM Suite 720 | -9/Storage | Lost 3 parts (1p1n1w) 813 | -9/Storage | Lost 4 allies 833 | -9/Storage | Lost 6 parts (2n2u2w) 972 | -9/Storage | Core integrity fell below 50% 976 | -9/Storage | Lost 3 allies 1122 | -9/Storage | Discovered new exit (range 16) 1134 | -9/Storage | Entered Materials 1134 | -8/Materials | Evolved 2 slots: Power x1, Utility x1 1147 | -8/Materials | Lost 4 parts (1n3u) 1212 | -8/Materials | Garrison activated, responded to threat 1502 | -8/Materials | Core integrity fell below 50% 1528 | -8/Materials | Lost 5 parts (2p2u1w) 1698 | -8/Materials | Repaired ECM Suite 1775 | -8/Materials | Discovered new exit (range 8) 1846 | -8/Materials | Build established: Infiltrator-Mutant 1891 | -8/Materials | Entered Factory 1891 | -7/Factory | Evolved 2 slots: Power x1, Propulsion x1 2276 | -7/Factory | System corruption reached 10% 2333 | -7/Factory | Lost 11 parts (3p3n3u2w) 2517 | -7/Factory | Core integrity fell below 50% 2523 | -7/Factory | Core integrity fell below 20% 2527 | -7/Factory | Destroyed by G-47 Trooper with Particle Gun Last Messages --------------- System corrupted: Matter fused (-10). K-01 Serf cleans the Neutrino Reactor. System corrupted: Energy discharge (-29). Acquired Med. Storage Unit. System corrupted: Energy discharge (-38). System corrupted: Matter fused (-9). K-01 Serf cleans the Matter Pump. Connecting with Terminal... K-01 Serf cleans the Matter Pump. System corrupted: Component data lost. K-01 Serf cleans the Matter Pump. System corrupted: Matter fused (-9). K-01 Serf cleans the Matter Pump. System corrupted: Matter fused (-5). Slammed into G-47 Trooper. Med. Treads destroyed. Critical hit (Burn: +37). Remote Datajack destroyed. Transmission Jammer destroyed. Rocket Launcher destroyed. Map ----- +----------------------------------------------------+ | ????????????????????????????????????????????????? | | ???????????????????????????????????????????????? | | #??????????????????????????????????????????????? | | #??????????????????????????????????????????????? | | #??????????????????????????????????????????????? | | #??????????????????????????????????????????????? | | #??????????????????????????????????????????????? | | #??????????????????????????????????????????????? | | #??????????????????????????????????????????????? | | #??????????????????????????????????????????????? | | #????????????????????? ????????????????????? | | +????????????????????# #???????????????????? | | #????????????????????# #???????????????????? | | #????????????????????# #???????????????????? | | #????????????????????# #???????????????????? | | #????????????????????# #???????????????????? | | #????????????????????# #???????????????????? | | #????????????????????# #???????????????????? | | ############?????????# #???????????????????? | | #?????????# #???????????????????? | | ########### #?????????# #???????????????????? | | #?????????# #?????????# #???????????????????? | | #????######+####??????+ #???????????????????? | | ###### #??????# #???????????????????? | | ## #??????# #???????????????????? | | "" ## [ ######## @ #???????????????????? | | "" ## # ###########?????????? | | "" ## """ """ # ???????? | | ## """ """ # Y Y ???????? | | "" ## """ """ # k g g ???????? | | "" ## # r Y ####### ???????? | | "" ######+##### ######??? ?????????? | | #?# # #??????????????? | | ####### # #??????????????? | | ! # #??????????????? | | # """ #??????????????? | | """ """ """ # """"" #??????????????? | | """ """ """ # """"" #??????????????? | | """ """ """ #### ### #??????????????? | | #####/###############??????????????? | | """ """ """ # #?????????????????????? | | """ """ """ # """"" #?????????????????????? | | """ """ """ # ""T"" #?????????????????????? | | # #?????????????????????? | | """ """ """ # #?????????????????????? | | """ """ """ # #?????????????????????? | | """ """ """ / #?????????????????????? | | # """""" #?????????????????????? | | # """""" #?????????????????????? | | ######## """""" #?????????????????????? | +----------------------------------------------------+ Best States ------------- Heat Dissipation 34 Energy Generation 32 Energy Capacity 300 Matter Stores 300 Matter Capacity 300 Sight Range 16 Robot Scan Range 15 Terrain Scan Density 10 ECM Strength 3 Jamming Range 12 Evasion (%) 64 Target Analysis 5 Recoil Reduction 2 Item Schematics ----------------- Drone Bay | -8/Materials | Scanalyzed Robot Schematics ------------------ None Fabricated ------------ Nothing Alien Tech Used ----------------- None Achievements -------------- Fist Fight Loot Pinata Release The Drones! Shopping List Challenges ------------ None Game ------ Seed ControlBoreGreatsword Manual? 0 Play Time 00:47:04 Cumulative 3.6 hours Start 2024.04.02 @ 22:53:34 End 2024.04.02 @ 23:38:55 Sessions 1 Manual Loads 0 Difficulty Rogue Special Mode None Game No. 8 Rogue 8 Adventurer 0 Explorer 0 Win Type - Total 0 Types 0/0/0/0/0/0/0/0/0 Lore% 4 Gallery% 11 Achievement% 10 Wizard Run 0 Options --------- Layout 2 ASCII 0 Keyboard 0 Movement Numpad Keybinds 0 Fullscreen 1 Font 24/Smallcaps Map View 50x44 Zoom Use 0% Tactical HUD 0 Map Filters NONE Filters NONE Steam X RUN: dcb5e418-de9c-4b03-9675-8c8007491456